bitfinex/quotes_ETHUSD_20240825
["timestamp","ask_amount","ask_price","bid_price","bid_amount"]
[1724558349043,3.61189,2768.7,2768.0,2.92182186]
[1724558349334,3.61256,2768.2,2767.8,21.87821862]
[1724558349688,7.2246,2768.4,2767.8,21.87821862]
[1724558349893,2.3864,2769.1,2767.8,21.87821862]
[1724558349894,3.61203,2768.6,2767.8,21.87821862]
[1724558350127,3.61215,2768.5,2767.9,3.56119015]
[1724558350292,3.61219,2768.4,2767.9,3.56119015]
[1724558350895,3.61219,2768.4,2768.0,0.55]
[1724558351094,3.61219,2768.4,2768.0,19.97911862]
[1724558351330,3.61203,2768.6,2768.0,19.97911862]
[1724558351634,3.61203,2768.6,2768.1,4.05778922]
[1724558351832,3.61203,2768.6,2768.2,0.55]
[1724558353790,3.61172,2768.8,2768.2,0.55]
[1724558353991,3.61172,2768.8,2768.3,2.4491]
[1724558354192,3.61147,2769.0,2768.4,0.62223039]
[1724558354472,3.61147,2769.0,2768.6,2.4491]
[1724558354601,3.61147,2769.0,2768.7,0.6222257]
[1724558355063,3.61147,2769.0,2768.7,0.55]
[1724558358045,3.61155,2768.9,2768.7,0.55]
[1724558358275,3.61147,2769.0,2768.7,0.55]
[1724558358482,3.61147,2769.0,2768.8,0.29991]
[1724558358633,3.61147,2769.0,2768.9,0.55]
[1724558359545,7.223,2769.0,2768.9,0.55]
[1724558359746,3.61178,2768.8,2768.7,0.55]
[1724558361875,7.22356,2768.8,2768.7,0.55]
[1724558362051,3.61187,2768.7,2768.6,0.55]
[1724558362252,3.61178,2768.8,2768.6,0.55]
[1724558362771,3.61178,2768.8,2768.6,0.96613641]
[1724558362930,3.61193,2768.6,2768.4,3.0]
[1724558363131,3.61219,2768.4,2768.3,19.42911862]
[1724558363345,3.61219,2768.4,2768.0,21.75321862]
[1724558363575,3.61219,2768.4,2768.2,2.33619078]
[1724558364179,3.61203,2768.6,2768.2,2.33619078]
[1724558364384,3.61206,2768.5,2768.2,2.33619078]
[1724558364972,3.61206,2768.5,2768.3,0.55]
[1724558365248,3.61206,2768.5,2768.3,0.999488]
[1724558365470,7.22423,2768.5,2768.3,0.999488]
[1724558365904,3.61219,2768.4,2768.3,0.999488]
[1724558366103,3.61219,2768.4,2768.3,0.55]
[1724558366376,3.61219,2768.4,2768.0,2.3241]
[1724558366377,3.61206,2768.5,2768.2,0.55]
[1724558367458,3.61229,2768.4,2768.2,0.55]
[1724558367699,3.61206,2768.5,2768.2,0.55]
[1724558367700,3.61232,2768.3,2768.2,0.55]
[1724558367999,3.61232,2768.3,2768.2,0.99827892]
[1724558368220,3.61206,2768.5,2768.2,0.99827892]
[1724558368372,7.22423,2768.5,2768.2,0.99827892]
[1724558368787,3.61188,2768.7,2768.2,0.99827892]
[1724558368967,4.74538177,2768.8,2768.2,0.99827892]
[1724558368968,3.6117,2768.8,2768.2,0.99827892]
[1724558369171,3.6117,2768.8,2768.3,0.26069681]
[1724558369365,3.61202,2768.6,2768.4,0.55]
[1724558369594,1.13368177,2768.9,2768.4,0.55]
[1724558369595,7.22412,2768.5,2768.4,0.55]
[1724558370902,3.61206,2768.5,2768.4,0.55]
[1724558372958,7.22412,2768.5,2768.4,0.55]
[1724558373173,3.61206,2768.5,2768.4,0.55]
[1724558373593,7.22412,2768.5,2768.4,0.55]
[1724558374181,8.35780177,2768.5,2768.4,0.55]
[1724558374378,7.22412,2768.5,2768.4,0.55]
[1724558374575,8.88473907,2768.5,2768.4,0.55]
[1724558374776,3.61284,2767.9,2767.8,7.34]
[1724558375234,3.61284,2767.9,2767.6,12.45]
[1724558375235,0.75724467,2768.0,2767.4,21.75321862]
[1724558375537,3.61316,2767.7,2767.3,7.34]
[1724558375815,5.50595168,2767.9,2767.4,2.3241]
[1724558376015,5.50595168,2767.9,2767.5,0.96641]
[1724558376596,1.89311168,2767.9,2767.7,3.04231061]
[1724558376780,1.89311168,2767.9,2767.8,8.93707]
[1724558376989,2.27157121,2768.4,2767.8,9.48707]
[1724558376990,1.13586701,2768.0,2767.8,9.48707]
[1724558377193,1.13586701,2768.0,2767.9,3.93834306]
[1724558377394,1.13586701,2768.0,2767.9,7.48834306]
[1724558379602,1.13586701,2768.0,2767.9,11.17342587]
[1724558379825,1.13586701,2768.0,2767.9,11.10118306]
[1724558381244,1.13586701,2768.0,2767.9,7.48834306]
[1724558381540,1.13586701,2768.0,2767.9,6.93834306]
[1724558381698,1.13586701,2768.0,2767.9,5.3241]
[1724558381896,1.13586701,2768.0,2767.9,2.3241]
[1724558382137,3.61229,2768.4,2767.9,2.3241]
[1724558382441,3.61234,2768.3,2767.9,2.3241]
[1724558382644,3.61245,2768.2,2767.9,2.3241]
[1724558382940,3.61228,2768.4,2768.0,0.78241]
[1724558383265,3.61228,2768.4,2768.0,3.78241]
[1724558384010,3.61282,2768.0,2767.5,0.96641]
[1724558384318,3.05401885,2768.3,2767.5,0.96641]
[1724558384319,0.75691885,2768.3,2767.5,3.61336]
[1724558384488,3.61233,2768.3,2767.6,2.2644]
[1724558385234,4.36897885,2768.5,2767.7,3.61301]
[1724558385556,3.61206,2768.5,2767.8,3.55]
[1724558385695,3.61206,2768.5,2767.9,0.716301]
[1724558385895,3.61206,2768.5,2768.0,0.55]
[1724558386601,3.61206,2768.5,2768.1,2.2644]
[1724558386822,3.61206,2768.5,2768.2,0.55]
[1724558387953,3.61222,2768.4,2768.2,0.55]
[1724558388550,4.36890885,2768.6,2768.2,0.83144]
[1724558388792,3.61199,2768.6,2768.2,0.83144]
[1724558389151,7.22405,2768.6,2768.2,0.83144]
[1724558389403,3.61199,2768.6,2768.2,0.83144]
[1724558389755,3.61216,2768.5,2768.2,0.83144]
[1724558391308,3.61216,2768.5,2768.3,0.309584]
[1724558391453,3.61216,2768.5,2768.4,0.55]
[1724558393019,3.61195,2768.6,2768.4,0.55]
[1724558395869,0.75691885,2768.7,2768.4,0.55]
[1724558396072,4.36864885,2768.8,2768.4,0.55]
[1724558396309,3.61173,2768.8,2768.4,0.55]
[1724558396517,0.75691885,2768.9,2768.5,0.07223183]
[1724558396703,0.75691885,2769.0,2768.6,2.8144]
[1724558396899,0.75691885,2769.0,2768.7,0.83144]
[1724558397215,4.36819885,2769.1,2768.7,0.83144]
[1724558397970,3.61141,2769.0,2768.7,0.83144]
[1724558398681,0.75691885,2769.1,2768.7,0.83144]
[1724558399013,3.61131,2769.1,2768.7,0.83144]
[1724558399222,3.61131,2769.1,2768.8,0.309584]
[1724558399422,3.61131,2769.1,2768.9,0.55]
[1724558400096,0.75691885,2769.2,2768.9,0.6222239]
[1724558400295,4.36798885,2769.3,2768.9,0.6222239]
[1724558400849,3.61107,2769.3,2768.9,0.6222239]
[1724558401448,3.61118,2769.2,2768.9,0.55]
[1724558401894,3.61118,2769.2,2768.9,0.9641024]
[1724558402394,3.61107,2769.3,2768.9,0.9641024]
[1724558402395,3.61141,2769.0,2768.9,0.55]
[1724558402598,3.61131,2769.1,2768.8,0.55]
[1724558402901,0.75691885,2769.0,2768.3,2.3072]
[1724558403129,3.61206,2768.6,2768.4,0.23072]
[1724558405342,3.6118,2768.7,2768.5,0.55]
[1724558405694,3.6118,2768.7,2768.3,2.3072]
[1724558405695,3.61194,2768.6,2768.4,0.55]
[1724558405900,3.6118,2768.7,2768.4,0.83572]
[1724558406204,3.61196,2768.6,2768.4,0.83572]
[1724558406843,3.6118,2768.7,2768.4,0.83572]
[1724558407340,3.61258,2768.1,2767.7,4.94138426]
[1724558407536,3.61258,2768.1,2767.5,1.12543454]
[1724558407537,3.61293,2767.9,2767.5,2.3072]
[1724558408197,4.36949885,2768.1,2767.5,2.3072]
[1724558408391,4.36949885,2768.1,2767.6,0.23072]
[1724558408556,3.61258,2768.1,2767.6,0.23072]
[1724558408953,0.75691885,2768.3,2767.6,3.84391]
[1724558409167,4.36907885,2768.5,2767.8,2.3072]
[1724558409571,0.75691885,2768.5,2767.8,2.3072]
[1724558409771,0.75691885,2768.6,2767.9,0.53072]
[1724558409976,0.75691885,2768.8,2768.0,4.11304619]
[1724558410247,4.36834885,2769.0,2768.3,2.3072]
[1724558410557,4.36824885,2769.1,2768.4,0.6222278]
[1724558410954,1.13586701,2769.2,2768.4,0.6222278]
[1724558410955,0.75691885,2769.2,2768.5,2.37942507]
[1724558411163,0.75691885,2769.4,2768.6,4.81604951]
[1724558411379,0.75691885,2769.3,2768.6,4.81604951]
[1724558411593,0.75691885,2769.2,2768.7,3.0]
[1724558411885,0.75691885,2769.2,2768.8,0.55]
[1724558412091,3.61142,2769.0,2768.8,0.55]
[1724558412388,3.61142,2769.0,2768.7,0.55]
[1724558412887,3.6118,2768.7,2768.3,3.0]
[1724558413061,3.6118,2768.7,2767.9,19.95983862]
[1724558413062,3.61214,2768.5,2768.0,10.34]
[1724558413258,3.61238,2768.3,2768.0,10.34]
[1724558413466,3.61238,2768.3,2768.0,7.34]
[1724558413984,3.61268,2768.1,2767.9,19.42911862]
[1724558414292,0.75691885,2768.3,2767.9,3.18791186]
[1724558414591,0.75691885,2768.5,2767.8,3.61292]
[1724558414793,0.75691885,2768.5,2767.9,5.92003]
[1724558415102,1.13586701,2768.6,2768.1,3.61249]
[1724558415302,3.61168,2768.8,2768.2,3.0]
[1724558415599,4.36859885,2768.8,2768.1,19.42911862]
[1724558415782,4.36848885,2768.9,2768.2,6.20763186]
[1724558415953,3.61157,2768.9,2768.2,6.75763186]
[1724558416158,5.50421586,2769.0,2768.2,26.18675048]
[1724558416400,0.75691885,2769.0,2768.3,2.3072]
[1724558416559,4.74719701,2769.1,2768.3,2.3072]
[1724558416560,4.36824885,2769.1,2768.4,0.55]
[1724558416759,4.36824885,2769.1,2768.5,0.646951]
[1724558416989,4.36824885,2769.1,2768.6,0.55]
[1724558417373,3.61133,2769.1,2768.6,0.55]
[1724558418102,7.22271,2769.1,2768.6,0.55]
[1724558418296,3.61143,2769.0,2768.6,0.55]
[1724558419013,7.97962885,2769.1,2768.6,0.55]
[1724558419186,4.36824885,2769.1,2768.5,0.55]
[1724558419387,4.36824885,2769.1,2768.6,0.355]
[1724558419598,3.61133,2769.1,2768.7,0.55]
[1724558420101,4.36774885,2769.5,2768.8,2.4684]
[1724558420300,4.36774885,2769.5,2768.9,0.62221556]
[1724558420505,4.36774885,2769.5,2769.0,1.37652751]
[1724558420694,3.61083,2769.5,2769.1,0.62221471]
[1724558421461,3.61083,2769.5,2769.1,0.55]
[1724558421787,7.22168,2769.5,2769.1,0.55]
[1724558421993,3.61083,2769.5,2769.2,0.07221472]
[1724558422197,0.75691885,2769.6,2769.3,0.55]
[1724558422397,0.75691885,2769.7,2769.3,0.55]
[1724558422610,4.36719885,2769.9,2769.3,3.0184]
[1724558422835,3.61028,2769.9,2769.3,3.0184]
[1724558423583,3.61037,2769.8,2769.3,3.0184]
[1724558423886,3.6107,2769.6,2769.3,0.55]
[1724558424299,3.6107,2769.6,2769.2,0.55]
[1724558424508,3.6107,2769.6,2769.3,0.355]
[1724558424800,3.6107,2769.6,2769.4,0.55]
[1724558425218,3.6107,2769.6,2769.2,0.55]
[1724558426126,3.04801885,2769.9,2768.7,2.4684]
[1724558426127,3.61102,2769.3,2768.7,2.4684]
[1724558426922,0.75691885,2769.6,2768.7,2.4684]
[1724558427127,1.13586701,2769.7,2768.6,0.355]
[1724558427128,3.23729744,2769.5,2768.6,0.355]
[1724558427498,3.61148,2769.0,2768.6,0.355]
[1724558427905,7.22247,2769.2,2768.6,0.355]
[1724558428135,3.61121,2769.2,2768.6,0.355]
[1724558428446,3.61107,2769.3,2768.6,0.355]
[1724558428739,3.61107,2769.3,2768.7,0.28234]
[1724558428740,7.22221,2769.3,2768.7,0.28234]
[1724558428938,3.61142,2769.0,2768.8,0.55]
[1724558429222,3.61128,2769.1,2768.6,0.55]
[1724558430088,3.61157,2768.9,2768.6,0.55]
[1724558431131,0.75691885,2769.1,2768.3,3.0]
[1724558431306,0.75691885,2769.1,2768.2,7.34]
[1724558431307,2.92577341,2768.5,2768.2,7.34]
[1724558431506,2.92577341,2768.5,2767.9,2.4684]
[1724558431507,2.92577341,2768.5,2768.3,0.734]
[1724558431703,2.92577341,2768.5,2767.9,2.4684]
[1724558432257,3.61272,2768.0,2767.8,7.34]
[1724558432608,3.61248,2768.2,2767.8,7.34]
[1724558433451,3.61258,2768.1,2767.8,7.34]
[1724558434607,3.61258,2768.1,2767.9,0.55]
[1724558434803,3.61306,2767.8,2767.3,9.8084]
[1724558435003,3.61306,2767.8,2767.3,2.4684]
[1724558435888,7.22557,2768.0,2767.3,2.4684]
[1724558436423,3.61275,2768.0,2767.3,2.4684]
[1724558436635,1.13586701,2768.3,2767.2,3.0]
[1724558436636,3.61312,2767.7,2767.2,3.0]
[1724558436838,4.74823701,2768.3,2767.1,19.42911862]
[1724558436839,2.2911,2767.9,2767.1,19.42911862]
[1724558437130,3.61352,2767.4,2767.0,7.34]
[1724558438820,3.61352,2767.4,2767.1,0.55]
[1724558439029,3.61352,2767.4,2767.1,1.339]
[1724558440121,3.61329,2767.6,2767.1,1.339]
[1724558440122,3.61329,2767.6,2767.2,0.07227064]
[1724558440434,3.61329,2767.6,2767.3,0.55]
[1724558440613,3.61274,2768.0,2767.4,2.32786508]
[1724558440798,3.61274,2768.0,2767.5,0.55]
[1724558441614,3.61285,2767.9,2767.5,0.55]
[1724558441798,3.613,2767.8,2767.5,0.55]
[1724558441995,3.61251,2768.2,2767.5,0.55]
[1724558442199,3.61262,2768.1,2767.6,0.0722534]
[1724558442426,3.61262,2768.1,2767.7,0.55]
[1724558442598,3.6128,2768.0,2767.7,0.55]
[1724558443231,3.61262,2768.1,2767.7,0.55]
[1724558444232,3.61238,2768.3,2767.8,2.32785095]
[1724558444441,3.61212,2768.5,2767.9,0.55]
[1724558444608,3.61212,2768.5,2768.0,0.2877851]
[1724558444791,3.61193,2768.6,2768.2,2.2556]
[1724558444994,3.61186,2768.7,2768.3,0.07223868]
[1724558445308,3.61159,2768.9,2768.4,0.55]
[1724558445508,3.61159,2768.9,2768.5,0.07223085]
[1724558445732,3.61159,2768.9,2768.6,0.55]
[1724558446035,3.6118,2768.7,2768.6,0.55]
[1724558446325,7.945939,2768.7,2768.6,0.55]
[1724558446818,3.6118,2768.7,2768.6,0.55]
[1724558447409,7.2236,2768.7,2768.6,0.55]
[1724558448028,3.6118,2768.7,2768.6,0.55]
[1724558448233,7.2236,2768.7,2768.6,0.55]
[1724558448618,3.6118,2768.7,2768.6,0.55]
[1724558449321,3.61159,2768.9,2768.6,0.55]
[1724558449542,3.61174,2768.8,2768.4,0.55]
[1724558450326,3.61182,2768.7,2768.4,0.55]
[1724558450899,3.61159,2768.9,2768.4,0.55]
[1724558451104,3.61169,2768.8,2768.4,0.55]
[1724558452200,7.22322,2768.9,2768.4,0.55]
[1724558452621,3.6117,2768.8,2768.4,0.55]
[1724558453582,3.61159,2768.9,2768.4,0.55]
[1724558454110,3.61169,2768.8,2768.4,0.55]
[1724558454612,3.61182,2768.7,2768.4,0.55]
[1724558455514,3.61182,2768.7,2768.2,0.55]
[1724558455813,3.61208,2768.5,2768.3,1.99791186]
[1724558456009,3.61208,2768.5,2768.4,0.55]
[1724558456212,3.61208,2768.5,2768.2,0.55]
[1724558456551,3.61182,2768.7,2768.1,0.55]
[1724558458556,3.61193,2768.6,2768.1,0.55]
[1724558459825,3.61208,2768.5,2768.1,0.55]
[1724558460053,3.61208,2768.5,2768.1,1.13056]
[1724558460559,7.22396,2768.6,2768.1,1.13056]
[1724558460738,3.61193,2768.6,2768.1,1.13056]
[1724558460933,7.22394,2768.6,2768.1,1.13056]
[1724558461282,3.61259,2768.1,2767.7,2.4929]
[1724558461746,3.61236,2768.3,2767.7,2.4929]
[1724558461921,3.61246,2768.2,2767.7,2.4929]
[1724558462560,3.61264,2768.1,2767.7,2.4929]
[1724558462881,3.61264,2768.1,2767.7,3.5078464]
[1724558463467,3.61272,2768.0,2767.7,3.5078464]
[1724558463728,3.61286,2767.9,2767.6,7.34]
[1724558463932,7.22581,2767.9,2767.7,0.55]
[1724558464239,3.61297,2767.8,2767.3,2.4929]
[1724558464439,3.61297,2767.8,2767.4,2.92620186]
[1724558465336,3.61297,2767.8,2767.2,26.76911862]
[1724558465337,3.61345,2767.5,2767.2,29.26201862]
[1724558465658,3.61345,2767.5,2767.2,2.4929]
[1724558466429,3.61345,2767.5,2766.9,2.4929]
[1724558467329,3.61318,2767.7,2766.9,2.4929]
[1724558467654,2.4245,2768.0,2767.1,6.1067]
[1724558467655,3.61293,2767.9,2767.1,6.1067]
[1724558467945,3.6125,2768.2,2767.3,2.4929]
[1724558468150,3.6125,2768.2,2767.4,3.78803815]
[1724558468720,3.61225,2768.4,2767.4,7.40140815]
[1724558468893,3.61196,2768.6,2767.8,6.1058]
[1724558469201,7.22399,2768.6,2767.9,0.55]
[1724558469387,3.61196,2768.6,2768.0,0.66558]
[1724558469594,3.61196,2768.6,2768.1,0.55]
[1724558469990,3.61196,2768.6,2768.1,0.62224202]
[1724558471718,3.61209,2768.5,2768.1,0.55]
[1724558472109,3.61196,2768.6,2768.1,0.55]
[1724558472613,7.224,2768.6,2768.1,0.55]
[1724558472815,7.224,2768.6,2768.1,0.971558]
[1724558473744,3.61196,2768.6,2768.1,0.971558]
[1724558479017,7.224,2768.6,2768.1,0.971558]
[1724558479216,0.75691885,2768.5,2768.1,0.55]
[1724558479551,3.61239,2768.3,2768.0,0.55]
[1724558480113,3.61258,2768.1,2767.8,9.8329]
[1724558481042,3.61258,2768.1,2767.8,7.34]
[1724558481635,3.61258,2768.1,2767.5,5.3339]
[1724558481839,3.61258,2768.1,2767.6,0.60067827]
[1724558482035,3.61273,2768.0,2767.6,0.60067827]
[1724558482470,3.61287,2767.9,2767.4,0.67288272]
[1724558482672,3.61287,2767.9,2767.3,9.6739]
[1724558483348,3.61271,2768.0,2767.3,9.6739]
[1724558483550,3.61299,2767.8,2767.3,2.3339]
[1724558483737,7.22608,2767.8,2767.0,2.3339]
[1724558483932,7.22608,2767.8,2767.1,3.27170886]
[1724558484239,3.61299,2767.8,2767.1,3.27170886]
[1724558484468,3.61299,2767.8,2767.0,5.94784]
[1724558484674,3.61299,2767.8,2767.1,3.0]
[1724558484852,0.75691885,2767.9,2767.2,4.16366]
[1724558485175,4.36968885,2768.0,2767.3,2.3339]
[1724558485393,7.98249885,2768.0,2767.4,0.55]
[1724558485682,4.36968885,2768.0,2767.4,0.55]
[1724558486069,0.75691885,2767.9,2767.4,0.55]
[1724558486294,0.75691885,2767.9,2767.2,0.55]
[1724558487181,3.61297,2767.8,2767.2,0.55]
[1724558487879,4.36988885,2767.8,2767.2,0.55]
[1724558488076,3.61297,2767.8,2767.2,0.55]
[1724558488284,3.61297,2767.8,2767.2,1.499769]
[1724558489379,4.36988885,2767.8,2767.2,1.499769]
[1724558490794,3.61297,2767.8,2767.2,1.499769]
[1724558491500,3.57865353,2767.8,2767.2,1.499769]
[1724558495370,7.19172353,2767.8,2767.2,1.499769]
[1724558495693,3.61311,2767.7,2767.2,1.499769]
[1724558496000,3.61347,2767.5,2767.1,5.3339]
[1724558496498,3.61347,2767.5,2767.1,2.3339]
[1724558497263,3.61347,2767.5,2767.2,0.55]
[1724558497962,3.61345,2767.5,2767.2,0.55]
[1724558498156,7.22694,2767.5,2767.2,0.55]
[1724558498356,7.22694,2767.5,2767.1,0.55]
[1724558498596,3.61345,2767.5,2767.1,0.55]
[1724558498899,3.61351,2767.4,2767.1,0.55]
[1724558499394,0.75691885,2767.6,2767.1,0.55]
[1724558499395,7.22744,2767.3,2767.1,0.55]
[1724558499604,3.61376,2767.2,2766.9,0.55]
[1724558499769,3.61368,2767.3,2766.9,0.55]
[1724558500204,3.61343,2767.5,2766.9,0.55]
[1724558500419,3.61353,2767.4,2766.9,0.8331]
[1724558501274,3.61343,2767.5,2766.9,0.8331]
[1724558502172,3.61351,2767.4,2766.9,0.8331]
[1724558503391,3.6137,2767.3,2766.9,0.55]
[1724558503562,6.27545578,2767.5,2766.6,2.281]
[1724558503765,3.61414,2767.0,2766.3,9.621]
[1724558504006,3.61414,2767.0,2766.3,13.23592]
[1724558504890,3.61414,2767.0,2766.4,0.55]
[1724558505090,3.61414,2767.0,2766.5,1.378592]
[1724558505408,3.61414,2767.0,2766.6,0.55]
[1724558505967,3.61376,2767.2,2766.6,0.55]
[1724558505968,7.2276,2767.2,2766.6,0.55]
[1724558506168,3.61376,2767.2,2766.7,2.281]
[1724558506398,3.61376,2767.2,2766.8,0.55]
[1724558506699,7.22762,2767.2,2766.8,0.55]
[1724558508301,3.61395,2767.1,2766.8,0.55]
[1724558508504,3.61402,2767.0,2766.8,0.55]
[1724558509963,3.61415,2766.9,2766.8,0.55]
[1724558510904,3.61415,2766.9,2766.4,2.281]
[1724558511112,3.61464,2766.6,2766.3,7.34]
[1724558512966,3.61464,2766.6,2766.4,0.55]
[1724558513166,4.37086885,2767.1,2766.5,2.281]
[1724558513397,3.61395,2767.1,2766.6,0.55]
[1724558513815,3.61402,2767.0,2766.6,0.55]
[1724558513968,3.61395,2767.1,2766.6,0.55]
[1724558514311,3.61376,2767.2,2766.7,0.07228645]
[1724558514513,3.61365,2767.3,2766.7,2.281]
[1724558514679,3.61361,2767.4,2766.8,0.8331]
[1724558514880,4.13586701,2767.7,2767.0,2.281]
[1724558514881,3.61315,2767.7,2767.0,2.281]
[1724558515096,3.61315,2767.7,2767.1,0.62226956]
[1724558515296,3.61315,2767.7,2767.2,2.281]
[1724558515507,3.61305,2767.8,2767.3,0.55]
[1724558515685,3.61305,2767.8,2767.4,0.2831]
[1724558515890,3.61305,2767.8,2767.5,0.55]
[1724558516322,3.61305,2767.8,2767.3,0.55]
[1724558519293,3.61305,2767.8,2767.4,2.4525]
[1724558519481,3.61305,2767.8,2767.5,0.55]
[1724558519820,7.22613,2767.8,2767.5,0.55]
[1724558520025,3.61305,2767.8,2767.5,0.55]
[1724558520207,3.61276,2768.0,2767.6,0.30025]
[1724558520410,3.61276,2768.0,2767.1,3.61386]
[1724558520411,3.61293,2767.9,2767.7,3.0025]
[1724558523427,3.61297,2767.8,2767.7,0.55]
[1724558523608,3.61332,2767.6,2767.3,2.4525]
[1724558523941,3.61332,2767.6,2767.4,0.55]
[1724558524278,3.61297,2767.8,2767.4,0.55]
[1724558524524,0.75691885,2767.9,2767.0,2.4525]
[1724558524725,0.75691885,2767.7,2767.0,2.4525]
[1724558524891,3.6137,2767.3,2767.0,2.4525]
[1724558525434,3.6137,2767.3,2766.8,0.2831]
[1724558525435,3.61403,2767.0,2766.8,0.2831]
[1724558525587,3.6142,2766.9,2766.7,2.4525]
[1724558525895,3.61437,2766.8,2766.1,2.4525]
[1724558526984,3.61463,2766.6,2766.1,2.4525]
[1724558528368,3.61463,2766.6,2766.2,0.55]
[1724558528510,3.61467,2766.5,2766.2,0.55]
[1724558530673,3.61493,2766.3,2766.2,0.55]
[1724558531006,3.61467,2766.5,2766.2,0.55]
[1724558532019,7.22897,2766.7,2766.2,0.55]
[1724558532213,3.61445,2766.7,2766.2,0.55]
[1724558532412,3.61445,2766.7,2766.3,2.4525]
[1724558532661,3.61445,2766.7,2766.4,0.55]
[1724558533525,7.98532885,2766.9,2766.4,0.85025]
[1724558533778,7.22841,2766.9,2766.4,0.85025]
[1724558534076,3.61415,2766.9,2766.4,0.85025]
[1724558534492,4.37085885,2767.1,2766.4,4.46502]
[1724558534697,3.61394,2767.1,2766.4,4.46502]
[1724558534978,3.61417,2766.9,2766.5,0.691752]
[1724558535194,3.61417,2766.9,2766.6,0.55]
[1724558535322,3.61417,2766.9,2766.4,0.85025]
[1724558535729,4.37090885,2767.1,2766.4,0.85025]
[1724558536031,3.61431,2766.8,2766.4,0.85025]
[1724558536240,3.61431,2766.8,2766.5,0.330275]
[1724558536532,3.61431,2766.8,2766.6,0.55]
[1724558537564,7.2287,2766.8,2766.6,0.55]
[1724558537764,7.2287,2766.8,2766.3,2.4525]
[1724558537765,3.61456,2766.6,2766.3,2.4525]
[1724558538967,3.61456,2766.6,2766.4,0.55]
[1724558539878,3.61442,2766.7,2766.4,0.55]
[1724558540090,7.22869,2766.8,2766.4,0.55]
[1724558540584,7.22867,2766.8,2766.4,0.55]
[1724558540737,3.61429,2766.8,2766.4,0.55]
[1724558541136,3.61416,2766.9,2766.4,0.85025]
[1724558541446,3.61403,2767.0,2766.4,0.85025]
[1724558542367,3.61415,2766.9,2766.4,0.85025]
[1724558543362,7.98480885,2767.1,2766.4,0.85025]
[1724558543537,3.61403,2767.0,2766.4,0.85025]
[1724558543735,3.61403,2767.0,2766.5,0.691768]
[1724558543971,3.61403,2767.0,2766.6,0.55]
[1724558544293,4.37081885,2767.1,2766.7,2.4514]
[1724558544462,3.6139,2767.1,2766.7,2.4514]
[1724558544676,4.37081885,2767.1,2766.7,2.4514]
[1724558544975,3.61415,2766.9,2766.7,2.4514]
[1724558545367,3.61415,2766.9,2766.6,0.55]
[1724558545568,3.61415,2766.9,2766.4,0.55]
[1724558545569,7.2284,2766.9,2766.4,0.55]
[1724558545749,7.98531885,2766.9,2766.4,0.55]
[1724558547036,7.2284,2766.9,2766.4,0.55]
[1724558547477,3.61429,2766.8,2766.4,0.55]
[1724558549281,0.75691885,2767.1,2766.5,2.52368913]
[1724558549574,4.37074885,2767.2,2766.7,2.4514]
[1724558549749,3.61413,2767.0,2766.7,2.4514]
[1724558549952,3.61413,2767.0,2766.8,0.55]
[1724558551280,3.61268426,2767.0,2766.8,0.55]
[1724558554386,3.61415,2766.9,2766.8,0.55]
[1724558556884,3.61405,2767.0,2766.8,0.55]
[1724558558673,0.75691885,2767.1,2766.8,2.9837]
[1724558558868,0.75691885,2767.2,2766.9,0.29837]
[1724558559082,0.75691885,2767.2,2767.0,0.55]
[1724558559286,3.61377,2767.2,2767.0,0.55]
[1724558559798,3.61377,2767.2,2766.9,0.55]
[1724558559994,3.6139,2767.1,2766.9,0.55]
[1724558560300,1.66895644,2767.1,2766.5,2.4337]
[1724558560599,3.60136701,2767.3,2766.5,2.4337]
[1724558560600,3.61447,2766.7,2766.5,2.4337]
[1724558560976,3.61418,2766.9,2766.5,2.4337]
[1724558561822,0.75691885,2767.1,2766.6,0.55]
[1724558562204,1.13586701,2767.3,2766.7,2.4337]
[1724558562205,0.75691885,2767.2,2766.7,2.4337]
[1724558562503,0.75691885,2767.2,2766.8,0.80059842]
[1724558563083,3.6137,2767.3,2766.8,0.80059842]
[1724558563084,4.37061885,2767.3,2766.8,0.80059842]
[1724558563483,3.6137,2767.3,2766.8,0.80059842]
[1724558565605,4.37061885,2767.3,2766.8,0.80059842]
[1724558566204,3.6137,2767.3,2766.8,0.80059842]
[1724558566506,0.75691885,2767.4,2766.9,2.76435784]
[1724558566705,0.75691885,2767.4,2767.0,0.55]
[1724558566868,4.37042885,2767.4,2767.0,0.55]
[1724558567268,0.75691885,2767.3,2767.0,0.55]
[1724558569248,0.75691885,2767.2,2767.0,0.55]
[1724558569549,0.75691885,2767.2,2767.0,0.90649563]
[1724558570031,4.74937701,2767.4,2767.0,0.90649563]
[1724558570032,0.75691885,2767.3,2767.0,0.90649563]
[1724558573433,0.75691885,2767.3,2767.0,0.55]
[1724558573650,4.37074885,2767.2,2767.0,0.55]
[1724558574033,3.61383,2767.2,2767.0,0.55]
[1724558574237,4.37074885,2767.2,2767.0,0.55]
[1724558574843,4.37074885,2767.2,2766.6,7.34]
[1724558574844,3.61425,2766.9,2766.6,7.34]
[1724558575047,3.61425,2766.9,2766.6,8.31737]
[1724558575722,0.75670117,2767.0,2766.6,8.31737]
[1724558576212,0.75670117,2767.0,2766.7,0.55]
[1724558579219,0.75670117,2766.9,2766.7,0.55]
[1724558579420,0.75670117,2766.9,2766.7,1.680107]
[1724558579734,0.75670117,2767.0,2766.7,1.680107]